Cogmind - Beta 13 @@@ ROGUE MODE // 2024.07.08 @ 23:18:21 Player: Selene Result: Destroyed by LO-8K7(R) with Subdweller Machine Gun Performance ------------- Evolutions (0) 0 Regions Visited (2) 400 Robots Destroyed (22) 110 Value Destroyed (414) 414 Prototype IDs (0) 0 Alien Tech Used (0) 0 Bonus (0) 0 TOTAL SCORE: 924 Bonus ------- None Cogmind --------- Core Integrity 0/250 Matter 13/300 Energy 200/200 System Corruption 0% Temperature Cool (0) Movement Walking (190) Ox1 Location -10/Subcaves Parts ------- > --- POWER (1) -------- Subdweller Power Source > --- PROPULSION (2) --- Aluminum Leg Aluminum Leg > --- UTILITY (2) ------ Disposable Heat Sink Medium Storage Unit > --- WEAPON (2) ------- Subdweller Laser Assault Rifle > --- INVENTORY (10) --- Structural Scanner Signal Interpreter Improved Terrain Scanner Assault Rifle Grenade Launcher Scrap Shield Fragment (48) Scrap Shield Fragment (48) Peak State ------------ > --- POWER ------------ Subdweller Power Source > --- PROPULSION ------- Aluminum Leg Subdweller Monowheel > --- UTILITY ---------- Disposable Heat Sink Medium Storage Unit > --- WEAPON ----------- Subdweller Laser Subdweller Shrapnel Launcher > --- INVENTORY -------- Aluminum Leg Subdweller Monowheel Structural Scanner Signal Interpreter Improved Terrain Scanner Assault Rifle Assault Rifle Grenade Launcher Scrap Shield Fragment Scrap Shield Fragment [Rating: 13] Favorites ----------- Power Light Ion Engine Engine Light Ion Engine Propulsion Aluminum Leg Leg Aluminum Leg Wheel Subdweller Monowheel Utility Medium Storage Unit Device Improved Terrain Scanner Storage Medium Storage Unit Protection Light Armor Plating Weapon Assault Rifle Energy Gun Subdweller Laser Ballistic Gun Assault Rifle Launcher Subdweller Shrapnel Launcher Build | -11 -10 -10 ------- Run | Yrd Mat Sub Slots Evolved . | . . . Power . | . . . Propulsion . | . . . Utility . | . . . Weapon . | . . . Parts Attached 26 | 7 5 14 Power 4 | 1 . 3 Engine 4 | 1 . 3 Core . | . . . Reactor . | . . . Propulsion 8 | 2 2 4 Treads . | . . . Leg 6 | 2 2 2 Wheel 2 | . . 2 Hover . | . . . Flight . | . . . Utility 5 | 2 2 1 Device 2 | 1 . 1 Storage 2 | 1 1 . Processor . | . . . Hackware . | . . . Protection 1 | . 1 . Artifact . | . . . Weapon 9 | 2 1 6 Energy Gun 1 | . . 1 Energy Cannon . | . . . Ballistic Gun 6 | 2 1 3 Ballistic Cannon . | . . . Launcher 2 | . . 2 Special Weapon . | . . . Impact Weapon . | . . . Slashing Weapon . | . . . Piercing Weapon . | . . . Special Melee Weapon . | . . . Unidentified Prototypes . | . . . Parts Lost 6 | . . 6 Power 3 | . . 3 Propulsion 1 | . . 1 Utility 1 | . . 1 Weapon 1 | . . 1 Highest Loss Streak 2 | . . 2 To Critical Strikes . | . . . Average Slot Usage (%) 93 | . 100 88 Engine 12 | . 14 10 Leg 21 | . 28 15 Wheel 4 | . . 8 Device 9 | . 14 5 Storage 14 | . 14 14 Protection 2 | . . 5 Energy Gun 2 | . . 5 Ballistic Gun 20 | . 28 13 Launcher 4 | . . 8 Naked Turns . | . . . Heaviest Build 28 | 12 20 28 Greatest Support 20 | 20 20 20 Greatest Overweight (x) 2 | . . 2 Average Overweight (x) . | . . . Largest Inventory Capacity 10 | 8 10 10 Average Capacity 9 | 7 9 10 Most Carried 10 | 6 10 10 Average Carried 9 | 4 9 9 Final Capacity 10 | 8 10 10 Final Carried 10 | 6 10 7 Class Distribution -------------------- 81% | Mutant 18% | Scavenger-Mutant Dominant Class ---------------- Mutant | -10/Materials Mutant | -10/Subcaves Resources | -11 -10 -10 ----------- Run | Yrd Mat Sub Matter Collected 605 | 207 146 252 Remotely . | . . . Salvage Created 427 | 37 146 244 Parts 48 | 9 21 18 Haulers Intercepted . | . . . Recyclers Shooed 1 | 1 . . Parts Field Recycled . | . . . Retrieved Matter . | . . . Parts Self-Destructed 10 | . . 10 Prevented . | . . . Kills | -11 -10 -10 ------- Run | Yrd Mat Sub Combat Hostiles Destroyed 15 | . 5 10 Guns 9 | . 5 4 AOE 6 | . . 6 Classes Destroyed 7 | 1 4 2 Tunneler 3 | 3 . . Operator 1 | . 1 . Watcher 3 | . 3 . Swarmer 9 | . 4 5 Grunt 1 | . 1 . Sentry 1 | . . 1 Subdweller 4 | . . 4 Best Kill Streak 4 | 1 3 4 Combat Bots Only 4 | . 2 4 Max Kills in Single Turn 2 | 1 1 2 Gunslinging . | . . . Exploded 2 | . . 2 Melee . | . . . Uniques/NPCs Destroyed . | . . . Combat | -11 -10 -10 -------- Run | Yrd Mat Sub Hostile Shots Fired 133 | . 12 121 Missed 45 | . 2 43 Damage Taken 1136 | . 110 1026 Core 264 | . 17 247 Absorbed by Shields . | . . . Core Remaining (%) 100 | 100 . . Volleys Fired 77 | 14 25 38 Largest 2 | 2 2 2 Hottest 80 | 40 40 80 Shots Fired 129 | 28 50 51 Gun 119 | 28 50 41 Cannon . | . . . Launcher 10 | . . 10 Special . | . . . Kinetic 119 | 28 50 41 Thermal 5 | . . 5 Explosive 5 | . . 5 Electromagnetic . | . . . Robot Hit Streak 8 | 4 6 8 Robot Miss Streak 5 | 2 5 3 Penetration Max . | . . . Secondary Targets 1 | . 1 . Max Gunslinging Chain 1 | . 1 . Shots Hit Robots 77 | 15 31 31 Core Hits 31 | 4 13 14 Critical Kills . | . . . Critical Parts Destroyed . | . . . Critical Strikes . | . . . Melee Attacks . | . . . Impact . | . . . Slashing . | . . . Piercing . | . . . Sneak Attacks . | . . . Combat Hostiles . | . . . Follow-up Attacks . | . . . Damage Inflicted 1427 | 174 373 880 Guns 911 | 174 373 364 Cannons . | . . . Explosions 516 | . . 516 Melee . | . . . Ramming . | . . . Kinetic 1109 | 174 373 562 Thermal 40 | . . 40 Explosive 278 | . . 278 Electromagnetic . | . . . Impact . | . . . Slashing . | . . . Piercing . | . . . Highest Corruption . | . . . Average Corruption . | . . . Corruption Purged . | . . . Corruption Blocked . | . . . Overload Shots . | . . . Overflow Damage 49 | . . 49 Projectiles . | . . . Explosions 49 | . . 49 Melee . | . . . Knockbacks . | . . . Impact . | . . . Kinetic . | . . . Secondary . | . . . Self-Inflicted Damage 21 | . . 21 Shots 1 | . . 1 Rammed . | . . . Targets Rammed . | . . . Kicked . | . . . Crushed . | . . . Highest Temperature . | . . . Average Temperature . | . . . Received Heat Transfer 276 | . 12 264 Siege Activations . | . . . Robots Corrupted . | . . . Combat Hostiles . | . . . Parts Fried . | . . . Impact Corruptions . | . . . Robots Melted . | . . . Combat Hostiles . | . . . Parts Melted . | . . . Heat Transferred 50 | . . 50 Parts Sabotaged . | . . . Parts Stolen . | . . . Parts Stripped . | . . . Power Chain Reactions . | . . . Alert | -11 -10 -10 ------- Run | Yrd Mat Sub Peak Influence 252 | 15 252 . Initial 9 | . 9 . Average 83 | 4 96 . Maximum Alert Level 1 | . 1 . Low Security (%) 88 | 100 86 . Level 1 11 | . 13 . Level 2 . | . . . Level 3 . | . . . Level 4 . | . . . Level 5 . | . . . High Security . | . . . Max Security . | . . . Squads Dispatched 2 | . 2 . Investigation 1 | . 1 . Extermination . | . . . Reinforcement 1 | . 1 . Assault . | . . . Garrison . | . . . Intercept . | . . . Searches Triggered . | . . . Construction Impeded . | . . . Haulers Reinforced . | . . . Active Scanning Responses . | . . . Cargo Convoy Interrupts . | . . . Stealth | -11 -10 -10 --------- Run | Yrd Mat Sub Distress Signals 1 | . 1 . Communications Jammed . | . . . Distress Signals . | . . . Times Spotted 46 | . 17 29 Peak Tracking Total 6 | . 4 6 Tactical Retreats 6 | . 2 4 Traps | -11 -10 -10 ------- Run | Yrd Mat Sub Traps Triggered 1 | . 1 . Indirectly . | . . . Trap Hack Attempts . | . . . Triggered . | . . . Disarmed . | . . . Reprogrammed . | . . . Reused . | . . . Traps Extracted . | . . . Installed . | . . . Triggered . | . . . Machines | -11 -10 -10 ---------- Run | Yrd Mat Sub Machines Disabled 2 | . . 2 Max in Single Turn 1 | . . 1 Machines Repaired . | . . . Machines Dismantled . | . . . Machines Sabotaged . | . . . Overloaded Fab Kills . | . . . Hacking | -11 -10 -10 --------- Run | Yrd Mat Sub Machines Accessed 4 | . 4 . Terminals 3 | . 3 . Fabricators . | . . . Repair Stations . | . . . Recycling Units 1 | . 1 . Scanalyzers . | . . . Garrison Access . | . . . Total Hacks 9 | . 9 . Successful 1 | . 1 . Failed 8 | . 8 . Catastrophic 4 | . 4 . Database Lockouts . | . . . Manual 5 | . 5 . Terminals 5 | . 5 . Fabricators . | . . . Repair Stations . | . . . Recycling Units 4 | . 4 . Scanalyzers . | . . . Garrison Access . | . . . Terminal Hacks . | . . . Fabricator Hacks . | . . . Repair Station Hacks . | . . . Recycling Unit Hacks . | . . . Scanalyzer . | . . . Garrison Access Hacks . | . . . Unauthorized Hacks 1 | . 1 . Terminals . | . . . Fabricators . | . . . Repair Stations . | . . . Recycling Units 1 | . 1 . Reject 1 | . 1 . Scanalyzers . | . . . Garrison Access . | . . . Data Cores Recovered . | . . . Used . | . . . Hacking Detections 4 | . 4 . Full Trace Events 1 | . 1 . Feedback Events . | . . . Feedback Blocked . | . . . Robot Schematics Acquired . | . . . Robots Built . | . . . Authchips . | . . . Time . | . . . Total Robot Build Rating . | . . . Part Schematics Acquired . | . . . Parts Built . | . . . Authchips . | . . . Time . | . . . Total Part Build Rating . | . . . Parts Repaired . | . . . Time . | . . . Parts Recycled . | . . . Recycled Matter . | . . . Retrieved Matter . | . . . Retrieved Components . | . . . Parts Scanalyzed . | . . . Part Schematics Acquired . | . . . Parts Damaged . | . . . Bothacking | -11 -10 -10 ------------ Run | Yrd Mat Sub Used RIF Installer . | . . . Robots Hacked . | . . . Non-combat . | . . . Combat . | . . . Robot Hacks Applied . | . . . Relay Couplers Released . | . . . Fabnet Peak Effective % . | . . . Robots Rewired . | . . . Allies Hacked . | . . . Hacks Repelled . | . . . Allies | -11 -10 -10 -------- Run | Yrd Mat Sub Total Allies . | . . . Largest Group . | . . . Highest-Rated Group . | . . . Highest-Rated Ally . | . . . Total Orders . | . . . Ally Attacks . | . . . Total Damage . | . . . Kills . | . . . Allies Corrupted . | . . . Allies Melted . | . . . Intel | -11 -10 -10 ------- Run | Yrd Mat Sub Robot Analysis Total . | . . . Derelict Logs Recovered . | . . . Drone Launches . | . . . Drone Recoveries . | . . . Exploration | -11 -10 -10 ------------- Run | Yrd Mat Sub Turns Passed 1898 | 140 822 936 Spaces Moved 1211 | 72 535 604 Core 12 | 12 . . Treads . | . . . Legs 768 | 60 535 173 Wheels 431 | . . 431 Hover . | . . . Flight . | . . . Fastest Speed 50 | 50 120 110 Average Speed 124 | 108 120 131 Slowest Speed 260 | 120 120 260 Overloaded Moves . | . . . Propulsion Burnouts . | . . . Robots Hopped . | . . . Cave-ins Triggered . | . . . Exploration Rate (%) 35 | 4 71 32 Regions Visited 2 Branch Regions 1 Pre-discovered Areas . | . . . Known Exits Taken . | . . . Unknown Exits Taken 2 | 1 1 . Scrap Searched 1 | . . 1 Spaces Dug . | . . . Terrain Destroyed 64 | . . 64 Melee . | . . . Projectile . | . . . AOE 64 | . . 64 Terrain Rammed . | . . . Walls Destroyed . | . . . Machines Disabled . | . . . Actions | -11 -10 -10 --------- Run | Yrd Mat Sub Total 1471 | 105 671 695 Wait 116 | 7 81 28 Move 1209 | 71 534 604 Hop . | . . . Pick Up 23 | 6 13 4 Fast Attach 12 | 7 . 5 Attach 5 | . . 5 Detach 1 | . . 1 Swap 9 | . 5 4 Drop 19 | . 13 6 Fire 77 | 14 25 38 Melee . | . . . Ram . | . . . Kick . | . . . Crush . | . . . Escape Stasis . | . . . Rewire . | . . . Trap . | . . . Miscellaneous . | . . . Route ------- -11/Scrapyard -10/Materials (discovered 3 exits: [*Mat] / [*Min] / [*Sub]) -10/Subcaves (discovered 2 exits: [*Mat] / [*Rec]) History --------- Turn | Location | Event 7 | -11/Scrapyard | Discovered new exit (range 15) 141 | -11/Scrapyard | Entered Materials 317 | -10/Materials | Build established: Mutant 743 | -10/Materials | Discovered new exit (range 14) 874 | -10/Materials | Discovered new exit (range 14) 950 | -10/Materials | Discovered new exit (range 9) 963 | -10/Materials | Entered Subcaves 981 | -10/Subcaves | A swath of the cavern ceiling suddenly collapsed 1508 | -10/Subcaves | Core integrity fell below 50% 1603 | -10/Subcaves | Discovered new exit (range 12) 1681 | -10/Subcaves | A swath of the cavern ceiling suddenly collapsed 1828 | -10/Subcaves | Discovered new exit (range 11) 1838 | -10/Subcaves | Build established: Scavenger-Mutant 1867 | -10/Subcaves | Core integrity fell below 20% 1899 | -10/Subcaves | Destroyed by LO-8K7(R) with Subdweller Machine Gun Last Messages --------------- 01539_ Acquired Sub. Laser. 01543_ Acquired Sub. Power Source. 01545_ Dropped Broken Sub. Monowheel. 01546_ Acquired Sub. Power Source. 01548_ Subatomizers dissect the Disposable Heat Sink. 01560_ Subatomizers dissect the Broken Sub. Monowheel. 01563_ Acquired 24 matter. 01603_ EXIT=FOUND A swath of the cavern ceiling suddenly collapses. 01756_ Sub. Monowheel shoots sparks and powers down. 01760_ Dropped Broken Sub. Monowheel. 01828_ EXIT=FOUND 01831_ Sub. Shrapnel Launcher destroyed. 01861_ LO-8K7(R): "OHNO!" 01864_ Sub. Power Source destroyed. 01898_ Sub. Laser shoots sparks and powers down. Map ----- +----------------------------------------------------+ | ?????????????????????????????????????????????????? | | ?????????????????????????????????????????????????? | | ?????????????????????????????????????????????????? | | ?????????????????????????????????????????????????? | | ?????????????????????????????????????????????????? | | ?????????????????????????????????????????????????? | | ?????????????????????????????????????????????????? | | ??????????????????????????""?????????????????????? | | ??????????????????????????? ??##?????????????????? | | ??????????????????????????? ## "?????????????????? | | ??????????????????????????? ?????????????????? | | ??????????????????????????? ?????????????????? | | ???????????????????????????? ?????????????????? | | ???????????????????????????? ?????????????????? | | ???????????????????????????? ?????????????????? | | ????????????????????????????# ?????????????????? | | ????????????????????????????# #?????????????????? | | ????????<####?#####????????## #?????????????????? | | ???????? """"## ##???????# #?????????????????? | | ????" " " "# ######??# #?????????????????? | | ????" "# #???# ###???????????????? | | ?????? #???## #???????????????? | | ##?? % # ##### ##???????????????? | | ##?? ## ## #???????????????? | | ### # ## ## R #???????????????? | | ##### ##### @ ##???????????????? | | # ## ##???###### #????????????????? | | #?????????#####?????###?##?????? | | ####????????????????# ## #?????? | | ####?????????????# #?????? | | ### ##???????????## #?????? | | #?# #### #####????#### #?????? | | ###?# #####??# ###### #?????? | | ????# ##??????# ## #?????? | | ?#### ##???????# #?????? | | ?# ####????????## #?????? | | ## ###??????????## #?????? | | ####????????# ##?????? | | ##???????## #####??????? | | ### ##??????## ### #??????????? | | ##?### ##?##### #### #??####????? | | #????## ## # #### ## #??# #????? | | ######### # #?##### ##?# #????? | | ### ### ## #????## ### #????? | | ## ## ## ### ##???## ##????? | | # "" ####? # ##????# #?????? | | # "" #????? ## #?# # #?????? | | #?????#### =##?# ##"#"### #?????? | | "## #????????# # #?## #""###?###?????? | | "#####????????#####??###""""##??????????? | +----------------------------------------------------+ Best States ------------- Heat Dissipation 25 Coolant Potential 50 Energy Generation 15 Energy Capacity 200 Matter Stores 209 Matter Capacity 300 Sight Range 16 Terrain Scan Range 16 Terrain Scan Density 10 Armor Coverage 150 Evasion (%) 55 Item Schematics ----------------- None Robot Schematics ------------------ None Fabricated ------------ Nothing Alien Tech Used ----------------- None Achievements -------------- None Challenges ------------ None Game ------ Seed PointyExplosiveBooster Manual? 0 Play Time 00:17:08 Cumulative 96.1 hours Start 2024.07.08 @ 23:01:03 End 2024.07.08 @ 23:18:21 Sessions 1 Manual Loads 0 Difficulty Rogue Special Mode None Game No. 55 Rogue 52 Adventurer 3 Explorer 0 Win Type - Total 2 Types 2/0/0/0/0/0/0/0/0 Lore% 50 Gallery% 55 Achievement% 46 Wizard Run 0 Options --------- Layout 1 ASCII 0 Keyboard 1 Movement Vi Keybinds 1 Fullscreen 2 Font 24/Smallcaps Map View 50x35 Zoom Use 0% Tactical HUD 1 Map Filters NONE Filters NONE Steam 1 RUN: 93d899d8-b54d-46d7-aefa-066e651c9d64